fUSD/lending_fUSD_20250617
["ID","MTS","AMOUNT","RATE_DAILY","PERIOD"]
[366258327,1750164722395,-490.0,0.0001726,2]
[366258328,1750164722405,-731.67,0.0001726,2]
[366258329,1750164722415,-538.95,0.0001726,2]
[366258330,1750164722425,-151.0,0.0001726,2]
[366258331,1750164722436,-520.27,0.0001726,2]
[366258332,1750164722446,-490.0,0.0001726,2]
[366258333,1750164722455,-490.0,0.0001726,2]
[366258334,1750164722465,-151.0,0.0001726,2]
[366258335,1750164722475,-490.0,0.0001726,2]
[366258336,1750164722485,-155.18024563,0.0001726,2]
[366258337,1750164722495,-490.0,0.0001726,2]
[366258338,1750164722506,-490.0,0.0001726,2]
[366258339,1750164722516,-709.65,0.0001726,2]
[366258340,1750164722527,-490.0,0.0001726,2]
[366258341,1750164722537,-490.0,0.0001726,2]
[366258342,1750164722547,-746.18,0.0001726,2]
[366258343,1750164722557,-490.0,0.0001726,2]
[366258344,1750164722568,-490.0,0.0001726,2]
[366258345,1750164722578,-490.0,0.0001726,2]
[366258346,1750164722588,-490.0,0.0001726,2]
[366258347,1750164722598,-908.62,0.0001726,2]
[366258348,1750164722608,-490.0,0.0001726,2]
[366258349,1750164722618,-577.82,0.0001726,2]
[366258350,1750164722628,-490.0,0.0001726,2]
[366258351,1750164722638,-490.0,0.0001726,2]
[366258352,1750164722648,-492.94576572,0.0001726,2]
[366258353,1750164722659,-1326.45,0.0001726,2]
[366258354,1750164722670,-490.0,0.0001726,2]
[366258355,1750164722680,-490.0,0.0001726,2]
[366258356,1750164722691,-957.51,0.0001726,2]
[366258357,1750164722700,-490.0,0.0001726,2]
[366258358,1750164722710,-827.74,0.0001726,2]
[366258359,1750164722720,-653.24,0.0001726,2]
[366258360,1750164722731,-490.0,0.0001726,2]
[366258361,1750164722741,-490.0,0.0001726,2]
[366258362,1750164722751,-490.0,0.0001726,2]
[366258363,1750164722761,-490.0,0.0001726,2]
[366258364,1750164722772,-1030.84,0.0001726,2]
[366258365,1750164722783,-490.0,0.0001726,2]
[366258366,1750164722793,-490.0,0.0001726,2]
[366258367,1750164722803,-490.0,0.0001726,2]
[366258368,1750164722813,-490.0,0.0001726,2]
[366258369,1750164722822,-490.0,0.0001726,2]
[366258370,1750164722833,-490.0,0.0001726,2]
[366258371,1750164722843,-490.0,0.0001726,2]
[366258372,1750164722853,-155.740015,0.0001726,2]
[366258373,1750164722863,-543.54,0.0001726,2]
[366258374,1750164722872,-490.0,0.0001726,2]
[366258375,1750164722882,-490.0,0.0001726,2]
[366258376,1750164722892,-1310.15,0.0001726,2]
[366258377,1750164722904,-496.68,0.0001726,2]
[366258378,1750164722914,-155.740015,0.0001726,2]
[366258379,1750164722924,-1005.43,0.0001726,2]
[366258380,1750164722935,-490.0,0.0001726,2]
[366258381,1750164722944,-490.0,0.0001726,2]
[366258382,1750164722955,-490.0,0.0001726,2]
[366258383,1750164722966,-490.0,0.0001726,2]
[366258384,1750164722976,-490.0,0.0001726,2]
[366258385,1750164722987,-495.48,0.0001726,2]
[366258386,1750164722998,-975.37,0.0001726,2]
[366258387,1750164723008,-490.0,0.0001726,2]
[366258388,1750164723018,-490.0,0.0001726,2]
[366258389,1750164723028,-490.0,0.0001726,2]
[366258390,1750164723038,-882.14,0.0001726,2]
[366258391,1750164723048,-490.0,0.0001726,2]
[366258392,1750164723058,-490.0,0.0001726,2]
[366258393,1750164723068,-490.0,0.0001726,2]
[366258394,1750164723078,-391.981491,0.0001726,2]
[366258395,1750164723088,-490.0,0.0001726,2]
[366258396,1750164723098,-490.0,0.0001726,2]
[366258397,1750164723108,-615.35,0.0001726,2]
[366258398,1750164723118,-391.981491,0.0001726,2]
[366258399,1750164723128,-360.959804,0.0001726,2]
[366258400,1750164723138,-490.0,0.0001726,2]
[366258401,1750164723148,-490.0,0.0001726,2]
[366258402,1750164723160,-360.959804,0.0001726,2]
[366258403,1750164723170,-534.08,0.0001726,2]
[366258404,1750164723184,-490.0,0.0001726,2]
[366258405,1750164723195,-659.94,0.0001726,2]
[366258406,1750164723205,-490.0,0.0001726,2]
[366258407,1750164723215,-490.0,0.0001726,2]
[366258408,1750164723226,-356.7813325,0.0001726,2]
[366258409,1750164723236,-1026.29,0.0001726,2]
[366258410,1750164723248,-490.0,0.0001726,2]
[366258411,1750164723260,-490.0,0.0001726,2]
[366258412,1750164723272,-490.0,0.0001726,2]
[366258413,1750164723283,-817.67,0.0001726,2]
[366258414,1750164723293,-490.0,0.0001726,2]
[366258415,1750164723303,-517.40796465,0.0001726,2]
[366258416,1750164723313,-490.0,0.0001726,2]
[366258417,1750164723323,-531.3,0.0001726,2]
[366258418,1750164723334,-490.0,0.0001726,2]
[366258419,1750164723344,-490.0,0.0001726,2]
[366258420,1750164723355,-490.0,0.0001726,2]
[366258421,1750164723367,-490.0,0.0001726,2]
[366258422,1750164723377,-490.0,0.0001726,2]
[366258423,1750164723387,-490.0,0.0001726,2]
[366258424,1750164723398,-1100.14,0.0001726,2]
[366258425,1750164723408,-271.99095853,0.0001726,2]
[366258426,1750164723419,-660.53,0.0001726,2]
[366258427,1750164723429,-962.4,0.0001726,2]
[366258428,1750164723440,-490.0,0.0001726,2]
[366258429,1750164723452,-490.0,0.0001726,2]
[366258430,1750164723463,-490.0,0.0001726,2]
[366258431,1750164723474,-490.0,0.0001726,2]
[366258432,1750164723485,-490.0,0.0001726,2]
[366258433,1750164723495,-173.68808729,0.0001726,2]
[366258434,1750164723507,-490.0,0.0001726,2]
[366258435,1750164723518,-490.0,0.0001726,2]
[366258436,1750164723529,-490.0,0.0001726,2]
[366258437,1750164723540,-720.15,0.0001726,2]
[366258438,1750164723551,-490.0,0.0001726,2]
[366258439,1750164723561,-490.0,0.0001726,2]
[366258440,1750164723571,-490.0,0.0001726,2]
[366258441,1750164723582,-490.0,0.0001726,2]
[366258442,1750164723593,-1377.37,0.0001726,2]
[366258443,1750164723605,-498.02,0.0001726,2]
[366258444,1750164723616,-490.0,0.0001726,2]
[366258445,1750164723626,-490.0,0.0001726,2]
[366258446,1750164723638,-490.0,0.0001726,2]
[366258447,1750164723649,-490.0,0.0001726,2]
[366258448,1750164723661,-490.0,0.0001726,2]
[366258449,1750164723671,-490.0,0.0001726,2]
[366258450,1750164723682,-490.0,0.0001726,2]
[366258451,1750164723694,-490.0,0.0001726,2]
[366258452,1750164723705,-490.0,0.0001726,2]
[366258453,1750164723716,-1323.87,0.0001726,2]
[366258454,1750164723727,-250.0,0.0001726,2]
[366258455,1750164723738,-490.0,0.0001726,2]
[366258456,1750164723748,-490.0,0.0001726,2]
[366258457,1750164723759,-490.0,0.0001726,2]
[366258458,1750164723770,-490.0,0.0001726,2]
[366258459,1750164723780,-820.55,0.0001726,2]
[366258460,1750164723790,-1759.73,0.0001726,2]
[366258461,1750164723801,-490.0,0.0001726,2]
[366258462,1750164723811,-490.0,0.0001726,2]
[366258463,1750164723821,-490.0,0.0001726,2]
[366258464,1750164723831,-490.0,0.0001726,2]
[366258465,1750164723840,-490.0,0.0001726,2]
[366258466,1750164723851,-763.5,0.0001726,2]
[366258467,1750164723861,-727.1,0.0001726,2]
[366258468,1750164723872,-490.0,0.0001726,2]
[366258469,1750164723883,-1756.61,0.0001726,2]
[366258470,1750164723894,-2106.23,0.0001726,2]
[366258471,1750164723906,-887.07,0.0001726,2]
[366258472,1750164723916,-490.0,0.0001726,2]
[366258473,1750164723927,-490.0,0.0001726,2]
[366258474,1750164723938,-490.0,0.0001726,2]
[366258475,1750164723949,-3566.07,0.0001726,2]
[366258476,1750164723959,-490.0,0.0001726,2]
[366258477,1750164723970,-1002.31,0.0001726,2]
[366258478,1750164723980,-1459.85,0.0001726,2]
[366258479,1750164723990,-1019.07,0.0001726,2]
[366258480,1750164724001,-2465.54,0.0001726,2]
[366258481,1750164724011,-490.0,0.0001726,2]
[366258482,1750164724022,-1541.9,0.0001726,2]
[366258483,1750164724032,-490.0,0.0001726,2]
[366258484,1750164724042,-527.08,0.0001726,2]
[366258485,1750164724053,-490.0,0.0001726,2]
[366258486,1750164724064,-490.0,0.0001726,2]
[366258487,1750164724074,-490.0,0.0001726,2]
[366258488,1750164724085,-1285.58,0.0001726,2]
[366258489,1750164724095,-512.89430249,0.0001726,2]
[366258490,1750164724106,-490.0,0.0001726,2]
[366258491,1750164724116,-490.0,0.0001726,2]
[366258492,1750164724127,-2302.59,0.0001726,2]
[366258493,1750164724137,-490.0,0.0001726,2]
[366258494,1750164724147,-585.8168789,0.0001726,2]
[366258495,1750164724158,-552.55,0.0001726,2]
[366258496,1750164724169,-1209.47,0.0001726,2]
[366258497,1750164724182,-1099.79,0.0001726,2]
[366258498,1750164724193,-490.0,0.0001726,2]
[366258499,1750164724203,-815.84,0.0001726,2]
[366258500,1750164724214,-1690.85,0.0001726,2]
[366258501,1750164724224,-490.0,0.0001726,2]
[366258502,1750164724234,-495.34642172,0.0001726,2]
[366258503,1750164724244,-490.0,0.0001726,2]
[366258504,1750164724254,-578.17936177,0.0001726,2]
[366258505,1750164724265,-490.0,0.0001726,2]
[366258506,1750164724275,-1609.53,0.0001726,2]
[366258507,1750164724285,-2309.01,0.0001726,2]
[366258508,1750164724295,-491.21,0.0001726,2]
[366258509,1750164724305,-490.0,0.0001726,2]
[366258510,1750164724315,-1850.524618,0.0001726,2]
[366258511,1750164724326,-179.41,0.0001726,2]
[366258512,1750164724337,-490.0,0.0001726,2]
[366258513,1750164724348,-490.0,0.0001726,2]
[366258514,1750164724358,-490.0,0.0001726,2]
[366258515,1750164724369,-3025.16,0.0001726,2]
[366258516,1750164724380,-490.0,0.0001726,2]
[366258517,1750164724390,-490.0,0.0001726,2]
[366258518,1750164724401,-1827.87,0.0001726,2]
[366258519,1750164724412,-978.71,0.0001726,2]
[366258520,1750164724422,-2376.97,0.0001726,2]
[366258521,1750164724432,-490.0,0.0001726,2]
[366258522,1750164724443,-665.58,0.0001726,2]
[366258523,1750164724453,-2059.97,0.0001726,2]
[366258524,1750164724464,-490.0,0.0001726,2]
[366258525,1750164724475,-490.0,0.0001726,2]
[366258526,1750164724486,-490.0,0.0001726,2]
[366258527,1750164724496,-2092.53,0.0001726,2]
[366258528,1750164724506,-490.0,0.0001726,2]
[366258529,1750164724517,-490.0,0.0001726,2]
[366258530,1750164724528,-5417.93,0.0001726,2]
[366258531,1750164724540,-1763.65,0.0001726,2]
[366258532,1750164724550,-490.0,0.0001726,2]
[366258533,1750164724561,-1518.66,0.0001726,2]
[366258534,1750164724571,-490.0,0.0001726,2]
[366258535,1750164724581,-490.0,0.0001726,2]
[366258536,1750164724592,-947.96,0.0001726,2]
[366258537,1750164724603,-490.0,0.0001726,2]
[366258538,1750164724614,-1099.29,0.0001726,2]
[366258539,1750164724624,-490.0,0.0001726,2]
[366258540,1750164724635,-490.0,0.0001726,2]
[366258541,1750164724645,-490.0,0.0001726,2]
[366258542,1750164724655,-490.0,0.0001726,2]
[366258543,1750164724666,-1237.37,0.0001726,2]
[366258544,1750164724677,-490.0,0.0001726,2]
[366258545,1750164724688,-490.0,0.0001726,2]
[366258546,1750164724699,-6182.7,0.0001726,2]
[366258547,1750164724710,-492.19,0.0001726,2]
[366258548,1750164724722,-490.0,0.0001726,2]
[366258549,1750164724732,-734.6,0.0001726,2]
[366258550,1750164724743,-1065.56,0.0001726,2]
[366258551,1750164724753,-833.42,0.0001726,2]
[366258552,1750164724764,-490.0,0.0001726,2]
[366258553,1750164724776,-490.0,0.0001726,2]
[366258554,1750164724787,-7839.6,0.0001726,2]
[366258555,1750164724797,-490.0,0.0001726,2]
[366258556,1750164725020,-490.0,0.0001726,2]
[366258557,1750164725048,-1638.538412,0.0001726,2]
[366258558,1750164725058,-490.0,0.0001726,2]
[366258559,1750164725067,-490.0,0.0001726,2]
[366258560,1750164725077,-556.2,0.0001726,2]
[366258561,1750164725087,-16871.86,0.0001726,2]
[366258562,1750164725098,-509.8280757,0.0001726,2]
[366258563,1750164725108,-490.0,0.0001726,2]
[366258564,1750164725118,-2361.36,0.0001726,2]
[366258565,1750164725128,-1710.39,0.0001726,2]
[366258566,1750164725138,-490.0,0.0001726,2]
[366258567,1750164725148,-490.0,0.0001726,2]
[366258568,1750164725158,-490.0,0.0001726,2]
[366258569,1750164725168,-5618.96,0.0001726,2]
[366258570,1750164725181,-490.0,0.0001726,2]
[366258571,1750164725191,-606.69,0.0001726,2]
[366258572,1750164725201,-490.0,0.0001726,2]
[366258573,1750164725211,-583.96,0.0001726,2]
[366258574,1750164725224,-1285.51,0.0001726,2]
[366258575,1750164725234,-894.67,0.0001726,2]
[366258576,1750164725244,-490.0,0.0001726,2]
[366258577,1750164725258,-568.94,0.0001726,2]
[366258578,1750164725268,-490.0,0.0001726,2]
[366258579,1750164725278,-490.88,0.0001726,2]
[366258580,1750164725288,-490.0,0.0001726,2]
[366258581,1750164725298,-490.0,0.0001726,2]
[366258582,1750164725308,-2491.31,0.0001726,2]
[366258583,1750164725318,-490.0,0.0001726,2]
[366258584,1750164725328,-490.0,0.0001726,2]
[366258585,1750164725338,-490.0,0.0001726,2]
[366258586,1750164725348,-523.4,0.0001726,2]
[366258587,1750164725358,-592.09,0.0001726,2]
[366258588,1750164725368,-490.0,0.0001726,2]
[366258589,1750164725378,-630.87905818,0.0001726,2]
[366258590,1750164725389,-490.0,0.0001726,2]
[366258591,1750164725399,-541.7,0.0001726,2]
[366258592,1750164725409,-1277.93,0.0001726,2]
[366258593,1750164725419,-490.0,0.0001726,2]
[366258594,1750164725429,-709.0,0.0001726,2]
[366258595,1750164725441,-1650.05,0.0001726,2]
[366258596,1750164725451,-490.0,0.0001726,2]
[366258597,1750164725460,-490.0,0.0001726,2]
[366258598,1750164725470,-499.28590497,0.0001726,2]
[366258599,1750164725480,-761.47,0.0001726,2]
[366258600,1750164725491,-490.0,0.0001726,2]
[366258601,1750164725501,-298.66829476,0.0001726,2]
[366258602,1750164725511,-490.0,0.0001726,2]
[366258603,1750164725521,-490.0,0.0001726,2]
[366258604,1750164725531,-490.0,0.0001726,2]
[366258605,1750164725541,-490.0,0.0001726,2]
[366258606,1750164725551,-1193.08,0.0001726,2]
[366258607,1750164725561,-664.73,0.0001726,2]
[366258608,1750164725571,-490.0,0.0001726,2]
[366258609,1750164725581,-490.0,0.0001726,2]
[366258610,1750164725591,-2646.76,0.0001726,2]
[366258611,1750164725601,-2826.37,0.0001726,2]
[366258612,1750164725611,-490.0,0.0001726,2]
[366258613,1750164725621,-199.55170739,0.0001726,2]
[366258614,1750164725631,-490.0,0.0001726,2]
[366258615,1750164725641,-490.0,0.0001726,2]
[366258616,1750164725651,-627.34,0.0001726,2]
[366258617,1750164725662,-490.0,0.0001726,2]
[366258618,1750164725671,-4780.04,0.0001726,2]
[366258619,1750164725681,-490.0,0.0001726,2]
[366258620,1750164725692,-653.71,0.0001726,2]
[366258621,1750164725702,-490.0,0.0001726,2]
[366258622,1750164725712,-490.0,0.0001726,2]
[366258623,1750164725722,-379.01439925,0.0001726,2]
[366258624,1750164725732,-1164.36,0.0001726,2]
[366258625,1750164725742,-1477.76,0.0001726,2]
[366258626,1750164725752,-501.58,0.0001726,2]
[366258627,1750164725761,-490.0,0.0001726,2]
[366258628,1750164725771,-490.0,0.0001726,2]
[366258629,1750164725780,-490.0,0.0001726,2]
[366258630,1750164725790,-623.53,0.0001726,2]
[366258631,1750164725800,-2200.08,0.0001726,2]
[366258632,1750164725810,-490.0,0.0001726,2]
[366258633,1750164725820,-490.0,0.0001726,2]
[366258634,1750164725830,-1524.61,0.0001726,2]
[366258635,1750164725839,-490.0,0.0001726,2]
[366258636,1750164725849,-490.0,0.0001726,2]
[366258637,1750164725859,-490.0,0.0001726,2]
[366258638,1750164725869,-2456.65,0.0001726,2]
[366258639,1750164725879,-1238.18,0.0001726,2]
[366258640,1750164725890,-490.0,0.0001726,2]
[366258641,1750164725901,-927.08,0.0001726,2]
[366258642,1750164725912,-1289.32,0.0001726,2]
[366258643,1750164725922,-490.0,0.0001726,2]
[366258644,1750164725933,-8543.47,0.0001726,2]
[366258645,1750164725943,-700.04,0.0001726,2]
[366258646,1750164725953,-490.0,0.0001726,2]
[366258647,1750164725963,-490.0,0.0001726,2]
[366258648,1750164725972,-381.45678869,0.0001726,2]
[366258649,1750164725982,-1722.14,0.0001726,2]
[366258650,1750164725992,-492.63,0.0001726,2]
[366258651,1750164726002,-3973.97,0.0001726,2]
[366258652,1750164726012,-490.0,0.0001726,2]
[366258653,1750164726024,-623.14,0.0001726,2]
[366258654,1750164726033,-490.0,0.0001726,2]
[366258655,1750164726043,-1069.77,0.0001726,2]
[366258656,1750164726054,-490.0,0.0001726,2]
[366258657,1750164726064,-490.0,0.0001726,2]
[366258658,1750164726074,-490.0,0.0001726,2]
[366258659,1750164726085,-490.0,0.0001726,2]
[366258660,1750164726095,-1146.38,0.0001726,2]
[366258661,1750164726107,-490.0,0.0001726,2]
[366258662,1750164726118,-899.89,0.0001726,2]
[366258663,1750164726128,-499.6484435,0.0001726,2]
[366258664,1750164726137,-491.2506183,0.0001726,2]
[366258665,1750164726147,-1240.51,0.0001726,2]
[366258666,1750164726156,-1288.48,0.0001726,2]
[366258667,1750164726167,-490.0,0.0001726,2]
[366258668,1750164726178,-8958.91,0.0001726,2]
[366258669,1750164726188,-4666.51,0.0001726,2]
[366258670,1750164726199,-900.12,0.0001726,2]
[366258671,1750164726208,-490.0,0.0001726,2]
[366258672,1750164726218,-490.0,0.0001726,2]
[366258673,1750164726228,-490.0,0.0001726,2]
[366258674,1750164726238,-490.0,0.0001726,2]
[366258675,1750164726248,-490.0,0.0001726,2]
[366258676,1750164726257,-1214.19,0.0001726,2]
[366258677,1750164726267,-841.35,0.0001726,2]
[366258678,1750164726277,-494.30476549,0.0001726,2]
[366258679,1750164726288,-490.0,0.0001726,2]
[366258680,1750164726298,-1696.76,0.0001726,2]
[366258681,1750164726307,-490.0,0.0001726,2]
[366258682,1750164726318,-6403.92,0.0001726,2]
[366258683,1750164726327,-490.0,0.0001726,2]
[366258684,1750164726337,-5069.31,0.0001726,2]
[366258685,1750164726347,-490.0,0.0001726,2]
[366258686,1750164726356,-490.0,0.0001726,2]
[366258687,1750164726367,-1254.85,0.0001726,2]
[366258688,1750164726376,-1922.55,0.0001726,2]
[366258689,1750164726386,-490.0,0.0001726,2]
[366258690,1750164726396,-490.0,0.0001726,2]
[366258691,1750164726407,-490.0,0.0001726,2]
[366258692,1750164726417,-572.96,0.0001726,2]
[366258693,1750164726426,-202.6,0.0001726,2]
[366258694,1750164726436,-622.02,0.0001726,2]
[366258695,1750164726446,-1131.12,0.0001726,2]
[366258696,1750164726456,-541.2,0.0001726,2]
[366258697,1750164726465,-490.0,0.0001726,2]
[366258698,1750164726475,-490.0,0.0001726,2]
[366258699,1750164726485,-490.0,0.0001726,2]
[366258700,1750164726495,-3565.34,0.0001726,2]
[366258701,1750164726506,-958.15,0.0001726,2]
[366258702,1750164726516,-490.0,0.0001726,2]
[366258703,1750164726526,-698.17,0.0001726,2]
[366258704,1750164726537,-490.0,0.0001726,2]
[366258705,1750164726547,-1641.86,0.0001726,2]
[366258706,1750164726557,-4754.63,0.0001726,2]
[366258707,1750164726567,-490.0,0.0001726,2]
[366258708,1750164726577,-947.42,0.0001726,2]
[366258709,1750164726587,-490.0,0.0001726,2]
[366258710,1750164726596,-717.05,0.0001726,2]
[366258711,1750164726606,-818.35,0.0001726,2]
[366258712,1750164726615,-490.0,0.0001726,2]
[366258713,1750164726625,-496.34203918,0.0001726,2]
[366258714,1750164726634,-3609.48,0.0001726,2]
[366258715,1750164726644,-490.0,0.0001726,2]
[366258716,1750164726654,-1389.77,0.0001726,2]
[366258717,1750164726664,-2322.63,0.0001726,2]
[366258718,1750164726674,-1795.91,0.0001726,2]
[366258719,1750164726684,-490.0,0.0001726,2]
[366258720,1750164726694,-676.55,0.0001726,2]
[366258721,1750164726704,-490.0,0.0001726,2]
[366258722,1750164726714,-490.0,0.0001726,2]
[366258723,1750164726724,-490.0,0.0001726,2]
[366258724,1750164726734,-490.0,0.0001726,2]
[366258725,1750164726744,-490.0,0.0001726,2]
[366258726,1750164726754,-1713.68,0.0001726,2]
[366258727,1750164726763,-490.0,0.0001726,2]
[366258728,1750164726773,-614.87,0.0001726,2]
[366258729,1750164726782,-490.0,0.0001726,2]
[366258730,1750164726792,-536.49,0.0001726,2]
[366258731,1750164726801,-515.18,0.0001726,2]
[366258732,1750164726812,-922.15,0.0001726,2]
[366258733,1750164726822,-490.0,0.0001726,2]
[366258734,1750164726832,-490.0,0.0001726,2]
[366258735,1750164726841,-836.27,0.0001726,2]
[366258736,1750164726851,-580.03,0.0001726,2]
[366258737,1750164726860,-764.25,0.0001726,2]
[366258738,1750164726870,-6572.71,0.0001726,2]
[366258739,1750164726880,-2988.54,0.0001726,2]
[366258740,1750164726890,-490.0,0.0001726,2]
[366258741,1750164726899,-490.0,0.0001726,2]
[366258742,1750164726910,-460.60637747,0.0001726,2]
[366258743,1750164726919,-767.81,0.0001726,2]
[366258744,1750164726929,-490.0,0.0001726,2]
[366258745,1750164726939,-629.84,0.0001726,2]
[366258746,1750164726949,-490.0,0.0001726,2]
[366258747,1750164726959,-2812.68,0.0001726,2]
[366258748,1750164726969,-490.0,0.0001726,2]
[366258749,1750164726978,-380.20305398,0.0001726,2]
[366258750,1750164726988,-2984.48,0.0001726,2]
[366258751,1750164726998,-490.0,0.0001726,2]
[366258752,1750164727008,-1481.78,0.0001726,2]
[366258753,1750164727017,-490.0,0.0001726,2]
[366258754,1750164727027,-2564.31,0.0001726,2]
[366258755,1750164727037,-673.06,0.0001726,2]
[366258756,1750164727047,-490.0,0.0001726,2]
[366258757,1750164727057,-490.0,0.0001726,2]
[366258758,1750164727066,-857.16,0.0001726,2]
[366258759,1750164727076,-490.0,0.0001726,2]
[366258760,1750164727085,-6525.63,0.0001726,2]
[366258761,1750164727095,-490.0,0.0001726,2]
[366258762,1750164727104,-599.13,0.0001726,2]
[366258763,1750164727114,-13649.84,0.0001726,2]
[366258764,1750164727124,-1032.47,0.0001726,2]
[366258765,1750164727134,-402.52481634,0.0001726,2]
[366258766,1750164727144,-490.0,0.0001726,2]
[366258767,1750164727156,-490.0,0.0001726,2]
[366258768,1750164727166,-680.82,0.0001726,2]
[366258769,1750164727179,-490.0,0.0001726,2]
[366258770,1750164727190,-490.0,0.0001726,2]
[366258771,1750164727202,-981.43,0.0001726,2]
[366258772,1750164727213,-490.0,0.0001726,2]
[366258773,1750164727224,-5730.1,0.0001726,2]
[366258774,1750164727236,-494.90446321,0.0001726,2]
[366258775,1750164727247,-713.63,0.0001726,2]
[366258776,1750164727258,-490.0,0.0001726,2]
[366258777,1750164727270,-490.0,0.0001726,2]
[366258778,1750164727280,-490.0,0.0001726,2]
[366258779,1750164727290,-680.36,0.0001726,2]
[366258780,1750164727300,-490.0,0.0001726,2]
[366258781,1750164727311,-490.0,0.0001726,2]
[366258782,1750164727321,-490.0,0.0001726,2]
[366258783,1750164727331,-4433.13,0.0001726,2]
[366258784,1750164727340,-756.93,0.0001726,2]
[366258785,1750164727350,-969.14,0.0001726,2]
[366258786,1750164727359,-1533.32,0.0001726,2]
[366258787,1750164727369,-2923.07,0.0001726,2]
[366258788,1750164727379,-490.0,0.0001726,2]
[366258789,1750164727389,-490.0,0.0001726,2]
[366258790,1750164727399,-1116.74,0.0001726,2]
[366258791,1750164727410,-818.68,0.0001726,2]
[366258792,1750164727420,-490.0,0.0001726,2]
[366258793,1750164727430,-2360.93,0.0001726,2]
[366258794,1750164727442,-516.92,0.0001726,2]
[366258795,1750164727453,-1777.4,0.0001726,2]
[366258796,1750164727463,-490.0,0.0001726,2]
[366258797,1750164727472,-490.0,0.0001726,2]
[366258798,1750164727482,-490.0,0.0001726,2]
[366258799,1750164727492,-490.0,0.0001726,2]
[366258800,1750164727502,-4856.36,0.0001726,2]
[366258801,1750164727511,-619.82,0.0001726,2]
[366258802,1750164727521,-510.66,0.0001726,2]
[366258803,1750164727531,-1028.02,0.0001726,2]
[366258804,1750164727541,-490.0,0.0001726,2]
[366258805,1750164727551,-585.87,0.0001726,2]
[366258806,1750164727561,-3108.13,0.0001726,2]
[366258807,1750164727571,-602.17,0.0001726,2]
[366258808,1750164727581,-6423.75,0.0001726,2]
[366258809,1750164727590,-2298.59,0.0001726,2]
[366258810,1750164727601,-650.83,0.0001726,2]
[366258811,1750164727610,-490.0,0.0001726,2]
[366258812,1750164727621,-1192.02,0.0001726,2]
[366258813,1750164727631,-490.0,0.0001726,2]
[366258814,1750164727640,-681.33,0.0001726,2]
[366258815,1750164727651,-567.02951474,0.0001726,2]
[366258816,1750164727661,-588.42,0.0001726,2]
[366258817,1750164727671,-1869.29,0.0001726,2]
[366258818,1750164727681,-490.0,0.0001726,2]
[366258819,1750164727691,-490.0,0.0001726,2]
[366258820,1750164727701,-20628.06,0.0001726,2]
[366258821,1750164727710,-3367.5,0.0001726,2]
[366258822,1750164727720,-18776.46,0.0001726,2]
[366258823,1750164727731,-490.0,0.0001726,2]
[366258824,1750164727742,-2842.54,0.0001726,2]
[366258825,1750164727752,-490.0,0.0001726,2]
[366258826,1750164727762,-490.0,0.0001726,2]